[Event "*** Titled Tuesday Blitz"]
[Site "Chess.com"]
[Date "2021.04.06"]
[Round "11"]
[White "ChessWarrior7197"]
[Black "DenLaz"]
[Result "1-0"]
[WhiteElo "2931"]
[BlackElo "2834"]
[TimeControl "180+1"]
[EndTime "12:09:48 PDT"]
[Termination "ChessWarrior7197 won by resignation"]

1. e4 {[%clk 0:03:00.9]} 1... e5 {[%clk 0:02:59.7]} 2. Nf3 {[%clk 0:03:00.5]}
2... Nc6 {[%clk 0:03:00.3]} 3. Bc4 {[%clk 0:03:00.9]} 3... Bc5 {[%clk
0:02:59.9]} 4. b4 {[%clk 0:02:59.8]} 4... Bxb4 {[%clk 0:02:59.4]} 5. c3 {[%clk
0:03:00.4]} 5... Ba5 {[%clk 0:02:59.6]} 6. d4 {[%clk 0:03:00.3]} 6... d6 {[%clk
0:03:00.1]} 7. Qb3 {[%clk 0:02:59.8]} 7... Qd7 {[%clk 0:03:00.1]} 8. O-O {[%clk
0:02:59.1]} 8... Bb6 {[%clk 0:02:59.7]} 9. Nbd2 {[%clk 0:02:58.5]} 9... Na5
{[%clk 0:02:59.7]} 10. Qc2 {[%clk 0:02:57.3]} 10... Nxc4 {[%clk 0:02:59.8]} 11.
Nxc4 {[%clk 0:02:58]} 11... Qc6 {[%clk 0:02:49.5]} 12. Nxb6 {[%clk 0:02:57]}
12... axb6 {[%clk 0:02:49.4]} 13. dxe5 {[%clk 0:02:57.6]} 13... dxe5 {[%clk
0:02:39.1]} 14. Nxe5 {[%clk 0:02:58.5]} 14... Qa4 {[%clk 0:02:39.5]} 15. Qd3
{[%clk 0:02:27.1]} 15... Nf6 {[%clk 0:02:25.1]} 16. Qg3 {[%clk 0:02:27.1]} 16...
O-O {[%clk 0:02:14.5]} 17. f3 {[%clk 0:02:25.2]} 17... Qa5 {[%clk 0:01:59.6]}
18. Bd2 {[%clk 0:01:52.6]} 18... Nh5 {[%clk 0:01:34.6]} 19. Qg5 {[%clk
0:01:50.4]} 19... g6 {[%clk 0:01:31.8]} 20. Nd3 {[%clk 0:01:32.6]} 20... Qxg5
{[%clk 0:01:27.1]} 21. Bxg5 {[%clk 0:01:33.5]} 21... f6 {[%clk 0:01:25.3]} 22.
Bh6 {[%clk 0:01:27.8]} 22... Rd8 {[%clk 0:01:18.1]} 23. Nf4 {[%clk 0:01:26.8]}
23... Nxf4 {[%clk 0:01:17.8]} 24. Bxf4 {[%clk 0:01:26.1]} 24... c6 {[%clk
0:01:17.5]} 25. Bc7 {[%clk 0:01:24.5]} 25... Rd2 {[%clk 0:01:16.7]} 26. Bxb6
{[%clk 0:01:22.4]} 26... Raxa2 {[%clk 0:00:58.7]} 27. Rxa2 {[%clk 0:01:23.3]}
27... Rxa2 {[%clk 0:00:59.2]} 28. Rd1 {[%clk 0:01:23.5]} 28... Be6 {[%clk
0:00:59.6]} 29. Rd8+ {[%clk 0:01:22.8]} 29... Kf7 {[%clk 0:00:58]} 30. Rb8
{[%clk 0:01:20.7]} 30... Rb2 {[%clk 0:00:57.3]} 31. Bd4 {[%clk 0:01:07.3]} 31...
h5 {[%clk 0:00:52.3]} 32. h4 {[%clk 0:01:06.2]} 32... Rb5 {[%clk 0:00:48]} 33.
Rh8 {[%clk 0:00:47.4]} 33... c5 {[%clk 0:00:43.5]} 34. Be3 {[%clk 0:00:47.1]}
34... Kg7 {[%clk 0:00:41.7]} 35. Rb8 {[%clk 0:00:43.3]} 35... Kf7 {[%clk
0:00:39.7]} 36. Kh2 {[%clk 0:00:42]} 36... Bd7 {[%clk 0:00:39.1]} 37. Kg3 {[%clk
0:00:40.2]} 37... Bc6 {[%clk 0:00:39.1]} 38. Rc8 {[%clk 0:00:39.6]} 38... Rb3
{[%clk 0:00:37.3]} 39. Rc7+ {[%clk 0:00:39.4]} 39... Kg8 {[%clk 0:00:34.2]} 40.
Bxc5 {[%clk 0:00:39.9]} 40... Rxc3 {[%clk 0:00:33.4]} 41. Bd4 {[%clk 0:00:38.8]}
41... Rd3 {[%clk 0:00:27.8]} 42. Bxf6 {[%clk 0:00:38.8]} 42... Bxe4 {[%clk
0:00:28.4]} 43. Kf4 {[%clk 0:00:36.3]} 43... Bf5 {[%clk 0:00:26.4]} 44. Kg5
{[%clk 0:00:34.1]} 44... Kf8 {[%clk 0:00:26.3]} 45. g4 {[%clk 0:00:30.7]} 45...
hxg4 {[%clk 0:00:26]} 46. fxg4 {[%clk 0:00:31.6]} 46... Be4 {[%clk 0:00:23.1]}
47. Kh6 {[%clk 0:00:24.4]} 47... Rf3 {[%clk 0:00:13.7]} 48. Be5 {[%clk
0:00:21.6]} 48... Ke8 {[%clk 0:00:12.6]} 49. Rc4 {[%clk 0:00:18.6]} 49... Bd3
{[%clk 0:00:12.9]} 50. Rc3 {[%clk 0:00:18.1]} 50... b5 {[%clk 0:00:12.7]} 51.
Rb3 {[%clk 0:00:17.3]} 51... Kd7 {[%clk 0:00:12.3]} 52. Kg7 {[%clk 0:00:16.4]}
52... Ke6 {[%clk 0:00:12.1]} 53. Bb2 {[%clk 0:00:15.7]} 53... Rg3 {[%clk
0:00:11.6]} 54. Kh6 {[%clk 0:00:13.8]} 54... Kd5 {[%clk 0:00:11.4]} 55. Kg5
{[%clk 0:00:12.5]} 55... Kc4 {[%clk 0:00:10.3]} 56. Rc3+ {[%clk 0:00:12.7]}
56... Kb4 {[%clk 0:00:10.8]} 57. Kf4 {[%clk 0:00:09.7]} 57... Rh3 {[%clk
0:00:10.3]} 58. h5 {[%clk 0:00:07.8]} 58... gxh5 {[%clk 0:00:10.3]} 59. g5
{[%clk 0:00:06.8]} 59... Bf1 {[%clk 0:00:08.1]} 60. Rc7 {[%clk 0:00:03.8]} 60...
Rh2 {[%clk 0:00:06.6]} 61. Be5 {[%clk 0:00:03.4]} 61... Rf2+ {[%clk 0:00:06.1]}
62. Ke4 {[%clk 0:00:03.6]} 62... Bc4 {[%clk 0:00:05.6]} 63. g6 {[%clk
0:00:02.5]} 63... Rg2 {[%clk 0:00:05.3]} 64. g7 {[%clk 0:00:03]} 64... h4 {[%clk
0:00:05.8]} 65. Rc8 {[%clk 0:00:02.9]} 65... h3 {[%clk 0:00:05.7]} 66. Rh8
{[%clk 0:00:03.8]} 66... Kb3 {[%clk 0:00:04.7]} 67. Rxh3+ {[%clk 0:00:03.7]}
67... Ka4 {[%clk 0:00:05.2]} 68. Rh8 {[%clk 0:00:03]} 68... b4 {[%clk
0:00:05.5]} 69. Ra8+ {[%clk 0:00:03.6]} 69... Kb3 {[%clk 0:00:05.9]} 70. Rb8
{[%clk 0:00:04.5]} 70... Rg4+ {[%clk 0:00:06]} 71. Kf5 {[%clk 0:00:04.6]} 71...
Rg1 {[%clk 0:00:06.6]} 72. Kf6 {[%clk 0:00:04.8]} 72... Rf1+ {[%clk 0:00:07.1]}
73. Ke7 {[%clk 0:00:05.2]} 73... Re1 {[%clk 0:00:07.7]} 74. Kd6 {[%clk
0:00:05.3]} 74... Rd1+ {[%clk 0:00:08]} 75. Kc6 {[%clk 0:00:05.6]} 75... Re1
{[%clk 0:00:05.2]} 76. Bd6 {[%clk 0:00:05.2]} 76... Rg1 {[%clk 0:00:04.8]} 77.
Rxb4+ {[%clk 0:00:04.4]} 77... Kc3 {[%clk 0:00:05.1]} 78. Rb7 {[%clk 0:00:04.9]}
78... Kd4 {[%clk 0:00:04.3]} 79. Re7 {[%clk 0:00:04.7]} 79... Bd5+ {[%clk
0:00:04.4]} 80. Kd7 {[%clk 0:00:05.1]} 80... Rb1 {[%clk 0:00:02.9]} 81. Re2
{[%clk 0:00:03.4]} 81... Rb7+ {[%clk 0:00:02.6]} 82. Bc7 {[%clk 0:00:03.4]}
82... Kc5 {[%clk 0:00:02.5]} 83. Rc2+ {[%clk 0:00:03.5]} 83... Kb5 {[%clk
0:00:03.1]} 84. Rb2+ {[%clk 0:00:03.3]} 84... Ka6 {[%clk 0:00:02.9]} 85. Rd2
{[%clk 0:00:03]} 85... Kb5 {[%clk 0:00:03.8]} 86. Rxd5+ {[%clk 0:00:03.1]} 86...
Ka6 {[%clk 0:00:03.8]} 87. g8=Q {[%clk 0:00:04]} 87... Rxc7+ {[%clk 0:00:03.6]}
88. Kxc7 {[%clk 0:00:04.4]} 1-0

[Event "*** Titled Tuesday Blitz"]
[Site "Chess.com"]
[Date "2021.04.06"]
[Round "11"]
[White "MITerryble"]
[Black "AlexTriapishko"]
[Result "0-1"]
[WhiteElo "2901"]
[BlackElo "2840"]
[TimeControl "180+1"]
[EndTime "12:09:50 PDT"]
[Termination "AlexTriapishko won on time"]

1. e4 {[%clk 0:02:53.9]} 1... c6 {[%clk 0:02:57.4]} 2. Nf3 {[%clk 0:02:53.6]}
2... d5 {[%clk 0:02:58.3]} 3. exd5 {[%clk 0:02:54.5]} 3... cxd5 {[%clk
0:02:57.5]} 4. Ne5 {[%clk 0:02:55]} 4... Nf6 {[%clk 0:02:57.2]} 5. d4 {[%clk
0:02:55.1]} 5... g6 {[%clk 0:02:57.5]} 6. c3 {[%clk 0:02:55.2]} 6... Bg7 {[%clk
0:02:57.6]} 7. Bd3 {[%clk 0:02:55.7]} 7... O-O {[%clk 0:02:57.4]} 8. O-O {[%clk
0:02:55.9]} 8... Nc6 {[%clk 0:02:55.7]} 9. Re1 {[%clk 0:02:51.6]} 9... Nxe5
{[%clk 0:02:50.4]} 10. dxe5 {[%clk 0:02:52.5]} 10... Nd7 {[%clk 0:02:46.9]} 11.
Bf4 {[%clk 0:02:50.6]} 11... Nc5 {[%clk 0:02:40.7]} 12. Bc2 {[%clk 0:02:50.2]}
12... Qb6 {[%clk 0:02:22.9]} 13. Be3 {[%clk 0:02:25.2]} 13... Qc6 {[%clk
0:02:18.1]} 14. Nd2 {[%clk 0:02:19.4]} 14... Rd8 {[%clk 0:01:54.2]} 15. h3
{[%clk 0:01:57.3]} 15... b6 {[%clk 0:01:25.9]} 16. Nf3 {[%clk 0:01:53.3]} 16...
Ne6 {[%clk 0:01:25.8]} 17. Qd2 {[%clk 0:01:43]} 17... Bb7 {[%clk 0:01:19.3]} 18.
Nd4 {[%clk 0:01:41.4]} 18... Qc8 {[%clk 0:01:14.5]} 19. Rad1 {[%clk 0:01:34]}
19... Nc5 {[%clk 0:01:07.1]} 20. Bh6 {[%clk 0:01:26.2]} 20... Bh8 {[%clk
0:01:06.4]} 21. e6 {[%clk 0:01:13.8]} 21... Nxe6 {[%clk 0:00:59.4]} 22. Nxe6
{[%clk 0:01:12.7]} 22... fxe6 {[%clk 0:01:00.3]} 23. Qg5 {[%clk 0:00:56.8]}
23... Bf6 {[%clk 0:00:58.7]} 24. Qg3 {[%clk 0:00:57.3]} 24... Kf7 {[%clk
0:00:49]} 25. Rd2 {[%clk 0:00:49.9]} 25... d4 {[%clk 0:00:43.6]} 26. c4 {[%clk
0:00:31.7]} 26... Qc6 {[%clk 0:00:28.5]} 27. Bd3 {[%clk 0:00:26.1]} 27... e5
{[%clk 0:00:25.6]} 28. Rde2 {[%clk 0:00:21.9]} 28... Qd6 {[%clk 0:00:25]} 29.
Rxe5 {[%clk 0:00:09.6]} 29... Rac8 {[%clk 0:00:19.1]} 30. Bf4 {[%clk 0:00:06.2]}
30... Qd7 {[%clk 0:00:17.1]} 31. R5e2 {[%clk 0:00:05.2]} 31... Rc5 {[%clk
0:00:16.7]} 32. b3 {[%clk 0:00:04.6]} 32... Rh5 {[%clk 0:00:14.2]} 33. Qg4
{[%clk 0:00:02.3]} 33... Rh4 {[%clk 0:00:08.5]} 34. Qxd7 {[%clk 0:00:02]} 34...
Rxd7 {[%clk 0:00:09.4]} 35. Bg3 {[%clk 0:00:02.7]} 35... Rh5 {[%clk 0:00:09.9]}
36. f3 {[%clk 0:00:03.1]} 36... Bg5 {[%clk 0:00:08.7]} 37. Bf2 {[%clk
0:00:03.2]} 37... Bf4 {[%clk 0:00:05.6]} 38. Rd1 {[%clk 0:00:03.4]} 38... Re5
{[%clk 0:00:03.5]} 39. Rxe5 {[%clk 0:00:02.7]} 39... Bxe5 {[%clk 0:00:04.4]} 40.
Re1 {[%clk 0:00:03.1]} 40... Bf6 {[%clk 0:00:04.5]} 41. Kf1 {[%clk 0:00:03.5]}
41... e6 {[%clk 0:00:03.6]} 42. Be4 {[%clk 0:00:03.8]} 42... Bxe4 {[%clk
0:00:02.5]} 43. Rxe4 {[%clk 0:00:04.7]} 43... a6 {[%clk 0:00:02.6]} 44. Ke2
{[%clk 0:00:04.7]} 44... e5 {[%clk 0:00:02.9]} 45. Kd3 {[%clk 0:00:04.6]} 45...
Ke6 {[%clk 0:00:03.5]} 46. f4 {[%clk 0:00:05]} 46... Kf5 {[%clk 0:00:02.6]} 47.
g4+ {[%clk 0:00:05]} 47... Ke6 {[%clk 0:00:02.6]} 48. fxe5 {[%clk 0:00:05.4]}
48... Bg5 {[%clk 0:00:01.2]} 49. Bxd4 {[%clk 0:00:05.2]} 49... Rf7 {[%clk
0:00:01.3]} 50. Ke2 {[%clk 0:00:04.9]} 50... b5 {[%clk 0:00:01.7]} 51. cxb5
{[%clk 0:00:04.4]} 51... axb5 {[%clk 0:00:02.6]} 52. Bc3 {[%clk 0:00:03.1]}
52... Rc7 {[%clk 0:00:02.6]} 53. Kd3 {[%clk 0:00:03.3]} 53... Rd7+ {[%clk
0:00:03.1]} 54. Kc2 {[%clk 0:00:03.8]} 54... Rc7 {[%clk 0:00:03.2]} 55. Kd3
{[%clk 0:00:04.2]} 55... Rf7 {[%clk 0:00:01.9]} 56. Ke2 {[%clk 0:00:03.1]} 56...
Rc7 {[%clk 0:00:01.8]} 57. Bb4 {[%clk 0:00:02.2]} 57... Rc2+ {[%clk 0:00:01.7]}
58. Kd3 {[%clk 0:00:03.1]} 58... Rxa2 {[%clk 0:00:02.3]} 59. Rd4 {[%clk
0:00:03.6]} 59... Kxe5 {[%clk 0:00:02]} 60. Rd7 {[%clk 0:00:02.8]} 60... h5
{[%clk 0:00:01.6]} 61. gxh5 {[%clk 0:00:02.8]} 61... gxh5 {[%clk 0:00:02.5]} 62.
Rb7 {[%clk 0:00:03.3]} 62... Kf5 {[%clk 0:00:01.8]} 63. Rxb5+ {[%clk 0:00:03.6]}
63... Kg6 {[%clk 0:00:02.4]} 64. Bc3 {[%clk 0:00:03.7]} 64... Rh2 {[%clk
0:00:01.9]} 65. Rb6+ {[%clk 0:00:04.1]} 65... Kf5 {[%clk 0:00:02.3]} 66. Rb5+
{[%clk 0:00:04.5]} 66... Kg6 {[%clk 0:00:02.8]} 67. Rb6+ {[%clk 0:00:03.5]}
67... Kf5 {[%clk 0:00:03.1]} 68. b4 {[%clk 0:00:04]} 68... Rxh3+ {[%clk
0:00:03.1]} 69. Kc4 {[%clk 0:00:04.9]} 69... Rh4+ {[%clk 0:00:03.1]} 70. Kd5
{[%clk 0:00:04.8]} 70... Rh3 {[%clk 0:00:03.8]} 71. Bd4 {[%clk 0:00:03.8]} 71...
Rd3 {[%clk 0:00:03.8]} 72. Kc4 {[%clk 0:00:04.2]} 72... Rd1 {[%clk 0:00:03.7]}
73. Rb5+ {[%clk 0:00:03.6]} 73... Kg4 {[%clk 0:00:03.6]} 74. Rb8 {[%clk
0:00:03.4]} 74... h4 {[%clk 0:00:03.8]} 75. Rg8 {[%clk 0:00:03.8]} 75... Kf5
{[%clk 0:00:03]} 76. Rf8+ {[%clk 0:00:03.8]} 76... Ke6 {[%clk 0:00:02.7]} 77.
Rg8 {[%clk 0:00:02.8]} 77... Be7 {[%clk 0:00:01.8]} 78. Rg6+ {[%clk 0:00:02.1]}
78... Kf5 {[%clk 0:00:01.7]} 79. Rh6 {[%clk 0:00:03]} 79... Bg5 {[%clk
0:00:01.5]} 80. Rh7 {[%clk 0:00:03.4]} 80... Rc1+ {[%clk 0:00:01.9]} 81. Kd3
{[%clk 0:00:03.4]} 81... Kg6 {[%clk 0:00:02.8]} 82. Rg7+ {[%clk 0:00:03.3]}
82... Kh6 {[%clk 0:00:02.9]} 83. Rg8 {[%clk 0:00:04.2]} 83... Rd1+ {[%clk
0:00:02.9]} 84. Ke4 {[%clk 0:00:04.2]} 84... Kh5 {[%clk 0:00:03.2]} 85. b5
{[%clk 0:00:03.5]} 85... h3 {[%clk 0:00:02.9]} 86. b6 {[%clk 0:00:03.6]} 86...
Kg4 {[%clk 0:00:02.2]} 87. Rf8 {[%clk 0:00:02.6]} 87... h2 {[%clk 0:00:01.6]}
88. Rh8 {[%clk 0:00:02.7]} 88... Bh4 {[%clk 0:00:01]} 89. Rg8+ {[%clk
0:00:02.3]} 89... Kh3 {[%clk 0:00:01.4]} 0-1